fUSD/lending_fUSD_20250823
["ID","MTS","AMOUNT","RATE_DAILY","PERIOD"]
[380965770,1755912841430,-1099.97,0.00019452,2]
[380965771,1755912841439,-1157.08,0.00019452,2]
[380965772,1755912841449,-535.95,0.00019452,2]
[380965773,1755912841458,-888.95,0.00019452,2]
[380965774,1755912841468,-691.37,0.00019452,2]
[380965775,1755912841478,-656.19,0.00019452,2]
[380965776,1755912841488,-985.25,0.00019452,2]
[380965777,1755912841497,-807.2,0.00019452,2]
[380965778,1755912841507,-1203.18,0.00019452,2]
[380965779,1755912841517,-1439.09,0.00019452,2]
[380965780,1755912841527,-659.77,0.00019452,2]
[380965781,1755912841537,-583.57,0.00019452,2]
[380965782,1755912841547,-731.16,0.00019452,2]
[380965783,1755912841556,-890.52,0.00019452,2]
[380965784,1755912841565,-766.72,0.00019452,2]
[380965785,1755912841576,-855.77,0.00019452,2]
[380965786,1755912841585,-276.7,0.00019452,2]
[380965787,1755912841595,-635.62,0.00019452,2]
[380965788,1755912841605,-381.70658691,0.00019452,2]
[380965789,1755912841614,-986.02,0.00019452,2]
[380965790,1755912841623,-466.03,0.00019452,2]
[380965791,1755912841633,-963.55,0.00019452,2]
[380965792,1755912841642,-482.07,0.00019452,2]
[380965793,1755912841652,-1494.7,0.00019452,2]
[380965794,1755912841661,-507.72,0.00019452,2]
[380965795,1755912841671,-859.0,0.00019452,2]
[380965796,1755912841680,-777.58,0.00019452,2]
[380965797,1755912841689,-828.37,0.00019452,2]
[380965798,1755912841698,-967.68,0.00019452,2]
[380965799,1755912841708,-506.23,0.00019452,2]
[380965800,1755912841718,-479.67,0.00019452,2]
[380965801,1755912841727,-781.12,0.00019452,2]
[380965802,1755912841737,-755.98,0.00019452,2]
[380965803,1755912841746,-937.77,0.00019452,2]
[380965804,1755912841756,-941.46,0.00019452,2]
[380965805,1755912841765,-979.86,0.00019452,2]
[380965806,1755912841774,-650.0,0.00019452,2]
[380965807,1755912841784,-873.74,0.00019452,2]
[380965808,1755912841793,-1039.23,0.00019452,2]
[380965809,1755912841807,-400.0,0.00019452,2]
[380965810,1755912841817,-505.4,0.00019452,2]
[380965811,1755912841827,-764.74,0.00019452,2]
[380965812,1755912841836,-545.13,0.00019452,2]
[380965813,1755912841846,-792.76,0.00019452,2]
[380965814,1755912841855,-822.02,0.00019452,2]
[380965815,1755912841865,-958.27,0.00019452,2]
[380965816,1755912841874,-493.69,0.00019452,2]
[380965817,1755912841884,-724.98,0.00019452,2]
[380965818,1755912841893,-550.01,0.00019452,2]
[380965819,1755912841903,-417.48632111,0.00019452,2]
[380965820,1755912841913,-957.7,0.00019452,2]
[380965821,1755912841923,-712.18,0.00019452,2]
[380965822,1755912841932,-532.46,0.00019452,2]
[380965823,1755912841941,-484.95,0.00019452,2]
[380965824,1755912841950,-839.82,0.00019452,2]
[380965825,1755912841960,-332.63510489,0.00019452,2]
[380965826,1755912841969,-3061.19,0.00019452,2]
[380965827,1755912841980,-402.87,0.00019452,2]
[380965828,1755912841990,-668.01,0.00019452,2]
[380965829,1755912842000,-440.73,0.00019452,2]
[380965830,1755912842010,-931.59,0.00019452,2]
[380965831,1755912842020,-911.43,0.00019452,2]
[380965832,1755912842029,-400.0,0.00019452,2]
[380965833,1755912842038,-585.39,0.00019452,2]
[380965834,1755912842048,-1000.0,0.00019463,2]
[380965835,1755912842058,-771.0,0.00019485,2]
[380965836,1755912842067,-300.0,0.00019494,2]
[380965837,1755912842079,-1266787.2522661,0.00019495,2]
[380965838,1755912842088,-1159.864,0.000195,2]
[380965839,1755912842098,-1159.864,0.000195,2]
[380965840,1755912842107,-1159.864,0.000195,2]
[380965841,1755912842117,-1159.864,0.000195,2]
[380965842,1755912842126,-1159.864,0.000195,2]
[380965843,1755912842135,-11228.44,0.000195,2]
[380965844,1755912842145,-200.0,0.0001951,2]
[380965845,1755912842155,-1425.0,0.00019531,2]
[380965846,1755912842166,-1425.0,0.00019573,2]
[380965847,1755912842177,-1000.0,0.00019584,2]
[380965848,1755912842186,-153.0,0.00019599,2]
[380965849,1755912842196,-153.0,0.00019601,2]
[380965850,1755912842206,-153.0,0.00019601,2]
[380965851,1755912842220,-153.0,0.00019611,2]
[380965852,1755912842230,-153.0,0.00019613,2]
[380965853,1755912842240,-153.0,0.00019613,2]
[380965854,1755912842250,-1000.0,0.00019613,2]
[380965855,1755912842259,-153.0,0.00019623,2]
[380965856,1755912842269,-153.0,0.00019625,2]
[380965857,1755912842279,-153.0,0.00019625,2]
[380965858,1755912842289,-150.0,0.0001963,2]
[380965859,1755912842299,-153.0,0.00019637,2]
[380965860,1755912842309,-153.0,0.00019637,2]
[380965861,1755912842321,-3500.0,0.00019647,2]
[380965862,1755912842330,-3237.86001771,0.00019647,2]
[380965863,1755912842340,-190.42,0.00019658,2]
[380965864,1755912842349,-549.67,0.00019708,2]
[380965865,1755912842359,-1425.0,0.00019717,2]
[380965866,1755912842369,-334.5472959,0.00019718,2]
[380965867,1755912842379,-160.0,0.00019718,2]
[380965868,1755912842388,-287.61899177,0.00019718,2]
[380965869,1755912842398,-1000.0,0.00019725,2]
[380965870,1755912842408,-1000.0,0.00019725,2]
[380965871,1755912842418,-733.0,0.00019726,2]
[380965872,1755912842437,-1367.0,0.00019726,2]
[380965873,1755912842447,-500.0,0.00019726,2]
[380965874,1755912842456,-2066.0,0.00019726,2]
[380965875,1755912842466,-500.0,0.00019726,2]
[380965876,1755912842476,-1471.92,0.00019726,2]
[380965877,1755912842486,-404.24,0.00019726,2]
[380965878,1755912842495,-957.1,0.00019726,2]
[380965879,1755912842504,-500.5,0.00019726,2]
[380965880,1755912842514,-691.2,0.00019726,2]
[380965881,1755912842523,-484.29,0.00019726,2]
[380965882,1755912842533,-241.54296401,0.00019726,2]
[380965883,1755912842543,-564.0,0.00019726,2]
[380965884,1755912842553,-922.66,0.00019726,2]
[380965885,1755912842562,-1309.75,0.00019726,2]
[380965886,1755912842576,-410.64,0.00019726,2]
[380965887,1755912842586,-814.35,0.00019726,2]
[380965888,1755912842596,-703.72,0.00019726,2]
[380965889,1755912842605,-416.84,0.00019726,2]
[380965890,1755912842615,-552.81,0.00019726,2]
[380965891,1755912842625,-565.22,0.00019726,2]
[380965892,1755912842638,-457.37,0.00019726,2]
[380965893,1755912842648,-400.0,0.00019726,2]
[380965894,1755912842657,-454.18,0.00019726,2]
[380965895,1755912842667,-408.41,0.00019726,2]
[380965896,1755912842678,-429.23,0.00019726,2]
[380965897,1755912842688,-414.76024766,0.00019726,2]
[380965898,1755912842698,-582.37,0.00019726,2]
[380965899,1755912842708,-759.88,0.00019726,2]
[380965900,1755912842718,-591.39,0.00019726,2]
[380965901,1755912842729,-413.97,0.00019726,2]
[380965902,1755912842741,-649.74,0.00019726,2]
[380965903,1755912842752,-446.38,0.00019726,2]
[380965904,1755912842763,-506.47,0.00019726,2]
[380965905,1755912842774,-715.02,0.00019726,2]
[380965906,1755912842785,-537.25,0.00019726,2]
[380965907,1755912842796,-400.0,0.00019726,2]
[380965908,1755912842807,-512.45,0.00019726,2]
[380965909,1755912842818,-527.41,0.00019726,2]
[380965910,1755912842834,-521.1,0.00019726,2]
[380965911,1755912842846,-446.92,0.00019726,2]
[380965912,1755912842857,-449.44,0.00019726,2]
[380965913,1755912842868,-675.1,0.00019726,2]
[380965914,1755912842880,-654.03,0.00019726,2]
[380965915,1755912842892,-609.3,0.00019726,2]
[380965916,1755912842902,-661.96,0.00019726,2]
[380965917,1755912842913,-568.98,0.00019726,2]
[380965918,1755912842924,-709.86,0.00019726,2]
[380965919,1755912842936,-812.84,0.00019726,2]
[380965920,1755912842947,-437.4,0.00019726,2]
[380965921,1755912842958,-586.38,0.00019726,2]
[380965922,1755912842969,-442.27,0.00019726,2]
[380965923,1755912842979,-562.61,0.00019726,2]
[380965924,1755912842990,-845.65,0.00019726,2]
[380965925,1755912843001,-441.24,0.00019726,2]
[380965926,1755912843012,-529.98,0.00019726,2]
[380965927,1755912843023,-570.39,0.00019726,2]
[380965928,1755912843034,-303.17,0.00019726,2]
[380965929,1755912843046,-421.77,0.00019726,2]
[380965930,1755912843058,-405.32144336,0.00019726,2]
[380965931,1755912843073,-464.48,0.00019726,2]
[380965932,1755912843085,-415.36,0.00019726,2]
[380965933,1755912843097,-530.98,0.00019726,2]
[380965934,1755912843108,-516.79,0.00019726,2]
[380965935,1755912843120,-512.43,0.00019726,2]
[380965936,1755912843131,-510.93,0.00019726,2]
[380965937,1755912843143,-486.92954497,0.00019726,2]
[380965938,1755912843154,-409.44,0.00019726,2]
[380965939,1755912843166,-499.57,0.00019726,2]
[380965940,1755912843178,-577.94,0.00019726,2]
[380965941,1755912843190,-400.0,0.00019726,2]
[380965942,1755912843201,-476.9,0.00019726,2]
[380965943,1755912843212,-637.7,0.00019726,2]
[380965944,1755912843223,-423.83,0.00019726,2]
[380965945,1755912843235,-459.29,0.00019726,2]
[380965946,1755912843247,-873.47,0.00019726,2]
[380965947,1755912843258,-571.62,0.00019726,2]
[380965948,1755912843269,-409.95,0.00019726,2]
[380965949,1755912843281,-549.98,0.00019726,2]
[380965950,1755912843292,-400.0,0.00019726,2]
[380965951,1755912843311,-531.47,0.00019726,2]
[380965952,1755912843331,-1704.41,0.00019726,2]
[380965953,1755912843343,-456.18,0.00019726,2]
[380965954,1755912843355,-890.29,0.00019726,2]
[380965955,1755912843367,-406.1,0.00019726,2]
[380965956,1755912843379,-421.32,0.00019726,2]
[380965957,1755912843391,-478.43,0.00019726,2]
[380965958,1755912843402,-487.04,0.00019726,2]
[380965959,1755912843414,-542.43,0.00019726,2]
[380965960,1755912843428,-510.81,0.00019726,2]
[380965961,1755912843439,-451.04,0.00019726,2]
[380965962,1755912843451,-477.02,0.00019726,2]
[380965963,1755912843462,-595.85,0.00019726,2]
[380965964,1755912843473,-667.8,0.00019726,2]
[380965965,1755912843485,-754.76,0.00019726,2]
[380965966,1755912843496,-240.75008455,0.00019726,2]
[380965967,1755912843507,-1030.1,0.00019726,2]
[380965968,1755912843519,-510.89,0.00019726,2]
[380965969,1755912843531,-436.99,0.00019726,2]
[380965970,1755912843542,-657.25,0.00019726,2]
[380965971,1755912843554,-371.91458507,0.00019726,2]
[380965972,1755912843565,-1067.81,0.00019726,2]
[380965973,1755912843579,-417.45,0.00019726,2]
[380965974,1755912843591,-520.16598446,0.00019726,2]
[380965975,1755912843602,-578.42,0.00019726,2]
[380965976,1755912843614,-786.01,0.00019726,2]
[380965977,1755912843626,-1145.67,0.00019726,2]
[380965978,1755912843637,-624.95,0.00019726,2]
[380965979,1755912843648,-439.98,0.00019726,2]
[380965980,1755912843660,-734.24,0.00019726,2]
[380965981,1755912843671,-716.27,0.00019726,2]
[380965982,1755912843682,-677.21,0.00019726,2]
[380965983,1755912843692,-400.0,0.00019726,2]
[380965984,1755912843703,-503.77,0.00019726,2]
[380965985,1755912843714,-651.98,0.00019726,2]
[380965986,1755912843725,-831.56,0.00019726,2]
[380965987,1755912843736,-742.35,0.00019726,2]
[380965988,1755912843750,-541.87,0.00019726,2]
[380965989,1755912843761,-462.17,0.00019726,2]
[380965990,1755912843774,-422.39,0.00019726,2]
[380965991,1755912843785,-535.7,0.00019726,2]
[380965992,1755912843796,-598.88,0.00019726,2]
[380965993,1755912843808,-601.7,0.00019726,2]
[380965994,1755912843819,-729.0,0.00019726,2]
[380965995,1755912843831,-326.09,0.00019726,2]
[380965996,1755912843842,-506.01936931,0.00019726,2]
[380965997,1755912843854,-482.06,0.00019726,2]
[380965998,1755912843865,-539.65641656,0.00019726,2]
[380965999,1755912843877,-560.98,0.00019726,2]
[380966000,1755912843889,-648.16,0.00019726,2]
[380966001,1755912843900,-485.12,0.00019726,2]
[380966002,1755912843911,-581.45,0.00019726,2]
[380966003,1755912843923,-607.66,0.00019726,2]
[380966004,1755912843936,-483.72,0.00019726,2]
[380966005,1755912843948,-506.32,0.00019726,2]
[380966006,1755912843960,-657.0,0.00019726,2]
[380966007,1755912843971,-460.21,0.00019726,2]
[380966008,1755912843983,-664.59,0.00019726,2]
[380966009,1755912843995,-463.13,0.00019726,2]
[380966010,1755912844007,-518.18,0.00019726,2]
[380966011,1755912844018,-548.04,0.00019726,2]
[380966012,1755912844030,-490.94,0.00019726,2]
[380966013,1755912844041,-623.23,0.00019726,2]
[380966014,1755912844053,-407.86,0.00019726,2]
[380966015,1755912844064,-538.71,0.00019726,2]
[380966016,1755912844076,-492.11,0.00019726,2]
[380966017,1755912844088,-585.32,0.00019726,2]
[380966018,1755912844100,-704.8,0.00019726,2]
[380966019,1755912844111,-419.51,0.00019726,2]
[380966020,1755912844124,-536.25,0.00019726,2]
[380966021,1755912844136,-416.08,0.00019726,2]
[380966022,1755912844148,-685.75,0.00019726,2]
[380966023,1755912844160,-475.58,0.00019726,2]
[380966024,1755912844173,-1265.94,0.00019726,2]
[380966025,1755912844188,-520.41567404,0.00019726,2]
[380966026,1755912844199,-433.85,0.00019726,2]
[380966027,1755912844215,-400.0,0.00019726,2]
[380966028,1755912844227,-428.36,0.00019726,2]
[380966029,1755912844239,-427.61,0.00019726,2]
[380966030,1755912844251,-543.91,0.00019726,2]
[380966031,1755912844263,-763.66,0.00019726,2]
[380966032,1755912844275,-482.08,0.00019726,2]
[380966033,1755912844286,-552.38,0.00019726,2]
[380966034,1755912844299,-793.95,0.00019726,2]
[380966035,1755912844310,-476.99,0.00019726,2]
[380966036,1755912844324,-607.86,0.00019726,2]
[380966037,1755912844336,-772.08,0.00019726,2]
[380966038,1755912844348,-577.68,0.00019726,2]
[380966039,1755912844360,-446.17,0.00019726,2]
[380966040,1755912844372,-499.75,0.00019726,2]
[380966041,1755912844385,-543.86,0.00019726,2]
[380966042,1755912844396,-707.33,0.00019726,2]
[380966043,1755912844409,-475.34,0.00019726,2]
[380966044,1755912844423,-602.1,0.00019726,2]
[380966045,1755912844435,-496.62,0.00019726,2]
[380966046,1755912844446,-480.32,0.00019726,2]
[380966047,1755912844458,-752.86,0.00019726,2]
[380966048,1755912844471,-633.62,0.00019726,2]
[380966049,1755912844482,-560.58,0.00019726,2]
[380966050,1755912844495,-416.01,0.00019726,2]
[380966051,1755912844507,-428.79,0.00019726,2]
[380966052,1755912844519,-614.22,0.00019726,2]
[380966053,1755912844531,-425.3,0.00019726,2]
[380966054,1755912844543,-508.68,0.00019726,2]
[380966055,1755912844554,-470.91,0.00019726,2]
[380966056,1755912844566,-418.5,0.00019726,2]
[380966057,1755912844580,-535.36,0.00019726,2]
[380966058,1755912844592,-193.17723,0.00019726,2]
[380966059,1755912844603,-400.0,0.00019726,2]
[380966060,1755912844616,-747.8,0.00019726,2]
[380966061,1755912844628,-400.0,0.00019726,2]
[380966062,1755912844640,-433.94,0.00019726,2]
[380966063,1755912844651,-472.48,0.00019726,2]
[380966064,1755912844663,-855.010025,0.00019726,2]
[380966065,1755912844678,-631.75,0.00019726,2]
[380966066,1755912844689,-479.25,0.00019726,2]
[380966067,1755912844701,-737.35,0.00019726,2]
[380966068,1755912844713,-473.06,0.00019726,2]
[380966069,1755912844725,-294.31464062,0.00019726,2]
[380966070,1755912844738,-464.53,0.00019726,2]
[380966071,1755912844750,-451.38,0.00019726,2]
[380966072,1755912844762,-605.41,0.00019726,2]
[380966073,1755912844774,-763.68,0.00019726,2]
[380966074,1755912844785,-437.52,0.00019726,2]
[380966075,1755912844797,-496.31,0.00019726,2]
[380966076,1755912844809,-517.63,0.00019726,2]
[380966077,1755912844822,-1076.1,0.00019726,2]
[380966078,1755912844834,-599.57,0.00019726,2]
[380966079,1755912844846,-578.64,0.00019726,2]
[380966080,1755912844858,-531.82,0.00019726,2]
[380966081,1755912844870,-538.24,0.00019726,2]
[380966082,1755912844881,-596.46,0.00019726,2]
[380966083,1755912844893,-876.45,0.00019726,2]
[380966084,1755912844905,-481.87,0.00019726,2]
[380966085,1755912844917,-750.69,0.00019726,2]
[380966086,1755912844929,-466.51668393,0.00019726,2]
[380966087,1755912844943,-483.91,0.00019726,2]
[380966088,1755912844955,-429.94,0.00019726,2]
[380966089,1755912844966,-583.44,0.00019726,2]
[380966090,1755912844977,-400.0,0.00019726,2]
[380966091,1755912844989,-2560.03,0.00019726,2]
[380966092,1755912845000,-412.65,0.00019726,2]
[380966093,1755912845012,-399.58,0.00019726,2]
[380966094,1755912845023,-466.47,0.00019726,2]
[380966095,1755912845035,-714.55,0.00019726,2]
[380966096,1755912845047,-511.98,0.00019726,2]
[380966097,1755912845059,-483.0,0.00019726,2]
[380966098,1755912845071,-638.96,0.00019726,2]
[380966099,1755912845082,-476.21362113,0.00019726,2]
[380966100,1755912845094,-626.45,0.00019726,2]
[380966101,1755912845105,-789.4,0.00019726,2]
[380966102,1755912845117,-411.07,0.00019726,2]
[380966103,1755912845131,-459.86,0.00019726,2]
[380966104,1755912845142,-590.56,0.00019726,2]
[380966105,1755912845155,-798.6,0.00019726,2]
[380966106,1755912845166,-7170.55,0.00019726,2]
[380966107,1755912845178,-489.74,0.00019726,2]
[380966108,1755912845189,-568.83,0.00019726,2]
[380966109,1755912845200,-556.35,0.00019726,2]
[380966110,1755912845211,-522.88,0.00019726,2]
[380966111,1755912845225,-755.36,0.00019726,2]
[380966112,1755912845236,-414.4,0.00019726,2]
[380966113,1755912845248,-2594.59,0.00019726,2]
[380966114,1755912845260,-446.5,0.00019726,2]
[380966115,1755912845271,-529.92,0.00019726,2]
[380966116,1755912845282,-2114.53,0.00019726,2]
[380966117,1755912845294,-705.67,0.00019726,2]
[380966118,1755912845305,-896.87,0.00019726,2]
[380966119,1755912845317,-173.62,0.00019726,2]
[380966120,1755912845336,-741.74,0.00019726,2]
[380966121,1755912845746,-1094.77,0.00019726,2]
[380966122,1755912845763,-562.13,0.00019726,2]
[380966123,1755912845773,-437.77,0.00019726,2]
[380966124,1755912845783,-869.76,0.00019726,2]
[380966125,1755912845794,-1048.91,0.00019726,2]
[380966126,1755912845804,-723.99,0.00019726,2]
[380966127,1755912845814,-541.27,0.00019726,2]
[380966128,1755912845826,-418.69,0.00019726,2]
[380966129,1755912845836,-963.36,0.00019726,2]
[380966130,1755912845847,-685.08,0.00019726,2]
[380966131,1755912845857,-4903.23,0.00019726,2]
[380966132,1755912845867,-400.0,0.00019726,2]
[380966133,1755912845877,-614.11,0.00019726,2]
[380966134,1755912845888,-530.85,0.00019726,2]
[380966135,1755912845898,-956.53,0.00019726,2]
[380966136,1755912845908,-690.94,0.00019726,2]
[380966137,1755912845919,-508.77,0.00019726,2]
[380966138,1755912845930,-781.78,0.00019726,2]
[380966139,1755912845940,-407.82,0.00019726,2]
[380966140,1755912845950,-573.49,0.00019726,2]
[380966141,1755912845960,-516.0,0.00019726,2]
[380966142,1755912845970,-548.91,0.00019726,2]
[380966143,1755912845980,-2566.25,0.00019726,2]
[380966144,1755912845991,-947.84,0.00019726,2]
[380966145,1755912846001,-468.96,0.00019726,2]
[380966146,1755912846011,-659.68,0.00019726,2]
[380966147,1755912846022,-691.7,0.00019726,2]
[380966148,1755912846032,-1053.52,0.00019726,2]
[380966149,1755912846043,-1155.0,0.00019726,2]
[380966150,1755912846054,-557.81,0.00019726,2]
[380966151,1755912846064,-1327.17,0.00019726,2]
[380966152,1755912846075,-719.87,0.00019726,2]
[380966153,1755912846085,-532.88,0.00019726,2]
[380966154,1755912846095,-482.24,0.00019726,2]
[380966155,1755912846106,-621.05,0.00019726,2]
[380966156,1755912846117,-825.64,0.00019726,2]
[380966157,1755912846127,-786.36,0.00019726,2]
[380966158,1755912846137,-494.20342536,0.00019726,2]
[380966159,1755912846148,-508.4,0.00019726,2]
[380966160,1755912846158,-811.77,0.00019726,2]
[380966161,1755912846168,-448.05,0.00019726,2]
[380966162,1755912846184,-522.09,0.00019726,2]
[380966163,1755912846193,-478.08,0.00019726,2]
[380966164,1755912846204,-471.12,0.00019726,2]
[380966165,1755912846214,-413.45,0.00019726,2]
[380966166,1755912846224,-400.01,0.00019726,2]
[380966167,1755912846234,-1160.25,0.00019726,2]
[380966168,1755912846244,-1658.24,0.00019726,2]
[380966169,1755912846254,-1082.57,0.00019726,2]
[380966170,1755912846264,-876.0,0.00019726,2]
[380966171,1755912846274,-576.13,0.00019726,2]
[380966172,1755912846284,-599.68,0.00019726,2]
[380966173,1755912846294,-581.91,0.00019726,2]
[380966174,1755912846304,-928.99,0.00019726,2]
[380966175,1755912846314,-704.93,0.00019726,2]
[380966176,1755912846324,-535.34,0.00019726,2]
[380966177,1755912846335,-909.17,0.00019726,2]
[380966178,1755912846346,-757.81,0.00019726,2]
[380966179,1755912846356,-629.77,0.00019726,2]
[380966180,1755912846366,-458.74,0.00019726,2]
[380966181,1755912846376,-808.82,0.00019726,2]
[380966182,1755912846386,-400.0,0.00019726,2]
[380966183,1755912846407,-677.9,0.00019726,2]
[380966184,1755912846418,-556.37,0.00019726,2]
[380966185,1755912846432,-1628.12,0.00019726,2]
[380966186,1755912846443,-412.49,0.00019726,2]
[380966187,1755912846454,-442.39,0.00019726,2]
[380966188,1755912846464,-554.4,0.00019726,2]
[380966189,1755912846474,-699.23,0.00019726,2]
[380966190,1755912846484,-627.55,0.00019726,2]
[380966191,1755912846495,-562.56,0.00019726,2]
[380966192,1755912846507,-475.41,0.00019726,2]
[380966193,1755912846518,-901.46,0.00019726,2]
[380966194,1755912846529,-618.33,0.00019726,2]
[380966195,1755912846539,-493.66,0.00019726,2]
[380966196,1755912846550,-1043.76,0.00019726,2]
[380966197,1755912846561,-491.94,0.00019726,2]
[380966198,1755912846572,-415.82,0.00019726,2]
[380966199,1755912846582,-682.29,0.00019726,2]
[380966200,1755912846592,-640.17,0.00019726,2]
[380966201,1755912846602,-568.93,0.00019726,2]
[380966202,1755912846613,-427.73,0.00019726,2]
[380966203,1755912846623,-501.87,0.00019726,2]
[380966204,1755912846633,-468.97,0.00019726,2]
[380966205,1755912846644,-620.18,0.00019726,2]
[380966206,1755912846655,-537.21,0.00019726,2]
[380966207,1755912846665,-577.38,0.00019726,2]
[380966208,1755912846675,-773.99,0.00019726,2]
[380966209,1755912846685,-457.02,0.00019726,2]
[380966210,1755912846696,-1005.26,0.00019726,2]
[380966211,1755912846706,-407.11,0.00019726,2]
[380966212,1755912846716,-646.19,0.00019726,2]
[380966213,1755912846727,-610.39,0.00019726,2]
[380966214,1755912846737,-431.04,0.00019726,2]
[380966215,1755912846747,-933.58,0.00019726,2]
[380966216,1755912846758,-192.18773466,0.00019726,2]
[380966217,1755912846768,-664.71,0.00019726,2]
[380966218,1755912846778,-605.05,0.00019726,2]
[380966219,1755912846788,-546.05,0.00019726,2]
[380966220,1755912846799,-1070.54,0.00019726,2]
[380966221,1755912846809,-410.97,0.00019726,2]
[380966222,1755912846819,-570.73,0.00019726,2]
[380966223,1755912846830,-938.83,0.00019726,2]
[380966224,1755912846841,-490.42,0.00019726,2]
[380966225,1755912846851,-716.24,0.00019726,2]
[380966226,1755912846861,-697.95,0.00019726,2]
[380966227,1755912846872,-731.6,0.00019726,2]
[380966228,1755912846882,-160.76,0.00019726,2]
[380966229,1755912846893,-665.32,0.00019726,2]
[380966230,1755912846902,-1401.51,0.00019726,2]
[380966231,1755912846912,-509.97,0.00019726,2]
[380966232,1755912846922,-474.27,0.00019726,2]
[380966233,1755912846933,-1143.48,0.00019726,2]
[380966234,1755912846943,-633.21,0.00019726,2]
[380966235,1755912846953,-400.0,0.00019726,2]
[380966236,1755912846963,-400.0,0.00019726,2]
[380966237,1755912846974,-400.0,0.00019726,2]
[380966238,1755912846984,-551.73,0.00019726,2]
[380966239,1755912846994,-400.0,0.00019726,2]
[380966240,1755912847004,-1150.35,0.00019726,2]
[380966241,1755912847014,-400.0,0.00019726,2]
[380966242,1755912847024,-803.81,0.00019726,2]
[380966243,1755912847035,-507.56,0.00019726,2]
[380966244,1755912847044,-709.31,0.00019726,2]
[380966245,1755912847055,-400.0,0.00019726,2]
[380966246,1755912847064,-1049.21,0.00019726,2]
[380966247,1755912847076,-870.96,0.00019726,2]
[380966248,1755912847086,-640.94,0.00019726,2]
[380966249,1755912847095,-400.0,0.00019726,2]
[380966250,1755912847106,-599.05,0.00019726,2]
[380966251,1755912847116,-350.90574199,0.00019726,2]
[380966252,1755912847126,-518.56,0.00019726,2]
[380966253,1755912847136,-878.26,0.00019726,2]
[380966254,1755912847147,-784.45,0.00019726,2]
[380966255,1755912847157,-1743.04,0.00019726,2]
[380966256,1755912847167,-939.87,0.00019726,2]
[380966257,1755912847177,-671.68,0.00019726,2]
[380966258,1755912847187,-538.86,0.00019726,2]
[380966259,1755912847198,-582.18,0.00019726,2]
[380966260,1755912847209,-400.0,0.00019726,2]
[380966261,1755912847219,-983.76,0.00019726,2]
[380966262,1755912847230,-839.71,0.00019726,2]
[380966263,1755912847240,-743.59,0.00019726,2]
[380966264,1755912847250,-706.05,0.00019726,2]
[380966265,1755912847261,-356.39246542,0.00019726,2]
[380966266,1755912847271,-1278.62,0.00019726,2]
[380966267,1755912847281,-890.17,0.00019726,2]
[380966268,1755912847291,-1021.93,0.00019726,2]
[380966269,1755912847301,-457.28229589,0.00019726,2]